bitfinex-derivatives/quotes_ETHF0:USTF0_20250217
["timestamp","ask_amount","ask_price","bid_price","bid_amount"]
[1739759739919,3.21339754,2677.6,2677.5,0.74686]
[1739759742619,3.21339754,2677.6,2677.5,1.03837037]
[1739759743113,3.21339754,2677.6,2677.5,0.74686]
[1739759744424,3.79859754,2677.6,2677.5,0.74686]
[1739759751323,3.21339754,2677.6,2677.5,0.74686]
[1739759755828,0.00559754,2677.6,2677.5,0.74686]
[1739759756229,0.544,2678.0,2677.9,0.74674]
[1739759756432,1.1152,2678.3,2677.8,5.07471]
[1739759756629,1.7113,2678.3,2678.2,0.74666]
[1739759756828,3.0021,2678.3,2678.2,0.74666]
[1739759757433,0.5961,2678.3,2678.2,0.74666]
[1739759758140,5.6128,2678.4,2678.0,4.79759622]
[1739759758335,5.6128,2678.4,2678.3,0.74663]
[1739759759028,3.2078,2678.4,2678.3,0.74663]
[1739759759731,0.00559754,2678.5,2678.1,3.2078]
[1739759759937,0.00559754,2678.5,2678.4,0.7466]
[1739759760835,0.00559754,2678.5,2678.4,2.4847]
[1739759766148,0.00559754,2678.5,2678.4,1.909]
[1739759766350,0.00559754,2678.5,2678.4,1.3112]
[1739759773458,0.00559754,2678.5,2678.4,0.7466]
[1739759776456,0.00559754,2678.5,2678.1,2.915]
[1739759776663,3.14763,2678.4,2678.2,0.74665]
[1739759776857,1.1195,2678.3,2678.2,0.74665]
[1739759777056,1.7066,2678.3,2678.2,0.74665]
[1739759778866,0.5871,2678.3,2678.2,0.74665]
[1739759782863,0.5871,2678.3,2678.1,0.74668]
[1739759783170,3.7949,2678.3,2677.6,12.62828828]
[1739759783464,3.7949,2678.3,2677.9,0.74672]
[1739759783664,0.7467,2678.1,2677.6,10.76123828]
[1739759783865,3.5558,2678.0,2677.9,0.74674]
[1739759784969,4.9497,2678.3,2678.2,0.74666]
[1739759785168,7.3507,2678.3,2678.2,0.74666]
[1739759789373,6.7616,2678.3,2678.2,0.74666]
[1739759789967,1.1528,2678.3,2678.2,0.74666]
[1739759792271,4.3606,2678.3,2677.7,0.74679]
[1739759792465,0.74674,2677.9,2677.7,0.74679]
[1739759792674,1.1748,2677.8,2677.7,0.74679]
[1739759792867,1.1748,2677.8,2677.7,0.7468]
[1739759793167,1.1748,2677.8,2677.4,1.1282]
[1739759793378,0.5986,2677.7,2677.6,0.7468]
[1739759805890,1.3454,2677.7,2677.6,0.7468]
[1739759806088,0.74686,2677.5,2677.4,0.74687]
[1739759806287,3.14886,2677.5,2677.4,0.74688]
[1739759807379,2.402,2677.5,2677.4,0.74688]
[1739759807886,3.14886,2677.5,2677.4,0.74688]
[1739759808582,2.402,2677.5,2677.4,0.74688]
[1739759819699,3.14886,2677.5,2677.4,0.74688]
[1739759820593,2.402,2677.5,2677.4,0.74688]
[1739759821485,3.14886,2677.5,2677.4,0.74688]
[1739759823196,2.402,2677.5,2677.4,0.74688]
[1739759823498,3.14886,2677.5,2677.4,0.74688]
[1739759825601,2.402,2677.5,2677.4,0.74688]
[1739759827594,3.14888,2677.5,2677.1,2.96129754]
[1739759827799,3.14888,2677.5,2677.4,0.74688]
[1739759829302,0.7469,2677.4,2677.3,0.74688]
[1739759829499,1.2909,2677.4,2677.3,0.74688]
[1739759830199,0.544,2677.4,2677.3,0.74688]
[1739759831503,1.29088,2677.4,2677.3,0.74688]
[1739759834810,1.29091,2677.4,2677.3,0.74691]
[1739759837890,1.29088,2677.4,2677.3,0.74691]
[1739759838102,0.544,2677.4,2677.3,0.74691]
[1739759839304,2.402,2677.5,2677.2,1.35579997]
[1739759839603,2.402,2677.5,2677.4,0.74688]
[1739759841805,2.402,2677.5,2677.1,1.09389754]
[1739759842009,2.10271997,2677.3,2677.1,0.75254754]
[1739759842208,1.30424,2677.2,2677.1,0.75254754]
[1739759842908,1.30424,2677.2,2677.1,0.00559754]
[1739759843708,1.30424,2677.2,2677.1,0.75256754]
[1739759844208,0.5573,2677.2,2677.1,0.75256754]
[1739759845110,1.1298,2677.2,2677.1,0.75256754]
[1739759849510,2.402,2677.2,2677.1,0.00559754]
[1739759849711,2.402,2677.2,2677.1,1.30116754]
[1739759849907,3.2078,2677.4,2677.1,1.30116754]
[1739759850109,2.402,2677.3,2677.2,2.67383997]
[1739759850308,2.402,2677.3,2677.2,3.23333997]
[1739759850508,5.73769997,2677.7,2677.2,2.48639997]
[1739759850709,3.2078,2677.7,2677.6,2.10262997]
[1739759852716,3.2078,2677.7,2677.6,0.74683]
[1739759853803,3.77,2677.7,2677.5,0.74684]
[1739759854002,0.545,2677.6,2677.5,0.74684]
[1739759854222,0.545,2677.6,2677.5,0.74685]
[1739759854714,0.545,2677.6,2677.1,0.00559754]
[1739759854910,3.9547,2677.4,2677.1,0.75254754]
[1739759855116,3.71013,2677.3,2677.1,0.75254754]
[1739759855407,0.5917,2677.2,2677.1,0.75254754]
[1739759855613,0.5917,2677.5,2677.4,0.74688]
[1739759855816,2.9937,2677.5,2677.4,0.74688]
[1739759857218,2.9937,2677.5,2677.3,0.74689]
[1739759857515,3.74057,2677.5,2677.1,0.00559754]
[1739759857717,3.74057,2677.5,2677.3,0.7469]
[1739759857903,2.9937,2677.5,2677.3,0.7469]
[1739759858110,2.9937,2677.5,2677.4,0.74688]
[1739759858419,2.402,2677.5,2677.4,0.74688]
[1739759859108,2.402,2677.5,2677.1,0.00559754]
[1739759859307,3.14887,2677.5,2677.2,0.74692]
[1739759859508,3.14887,2677.5,2677.1,0.00559754]
[1739759859710,2.402,2677.5,2677.4,0.74688]
[1739759861213,3.14886,2677.5,2677.1,0.00559754]
[1739759861516,3.14886,2677.5,2677.4,0.74688]
[1739759862112,2.402,2677.5,2677.4,0.74688]
[1739759862913,3.14886,2677.5,2677.4,0.74688]
[1739759863212,0.74689,2677.4,2677.3,0.7469]
[1739759863514,2.402,2677.5,2677.3,0.7469]
[1739759863715,2.402,2677.5,2677.1,0.00559754]
[1739759863915,3.14887,2677.5,2677.4,0.74688]
[1739759865121,0.74689,2677.4,2677.3,0.7469]
[1739759865516,3.2078,2677.4,2677.1,0.00559754]
[1739759865717,0.74694,2677.2,2677.1,0.00559754]
[1739759866119,1.33264,2677.2,2677.1,0.00559754]
[1739759866520,0.5857,2677.2,2677.1,0.75256754]
[1739759867025,1.33264,2677.2,2677.1,0.75256754]
[1739759870123,0.5857,2677.2,2677.1,0.75256754]
[1739759871722,3.2078,2677.4,2677.1,0.75256754]
[1739759871927,3.2078,2677.4,2677.3,0.74691]
[1739759872223,5.6098,2677.4,2677.3,0.74691]
[1739759872524,5.6098,2677.4,2677.3,1.31461]
[1739759873331,2.402,2677.4,2677.3,1.31461]
[1739759875026,6.1228,2677.7,2677.6,0.74683]
[1739759875330,8.5248,2677.7,2677.6,0.74683]
[1739759875731,3.2078,2677.7,2677.6,0.74683]
[1739759875928,5.6098,2677.7,2677.5,0.74683]
[1739759876129,5.6098,2677.7,2677.6,0.74683]
[1739759877440,5.6098,2677.7,2677.5,0.74684]
[1739759877639,6.35661,2677.7,2677.5,0.74684]
[1739759878033,5.6098,2677.7,2677.5,0.74684]
[1739759878335,6.35661,2677.7,2677.6,0.74683]
[1739759878527,5.6098,2677.7,2677.6,0.74683]
[1739759879439,6.3566,2677.7,2677.6,0.74683]
[1739759879942,5.6098,2677.7,2677.3,0.5677]
[1739759880242,0.74683,2677.6,2677.5,0.74685]
[1739759880434,6.96531412,2677.7,2677.3,0.5677]
[1739759880738,0.5745,2677.5,2677.4,0.74688]
[1739759880934,0.5745,2677.5,2677.4,2.10239412]
[1739759881733,0.5745,2677.5,2677.4,0.74688]
[1739759883541,0.74691,2677.4,2677.1,0.00559754]
[1739759883739,2.402,2677.3,2677.1,0.00559754]
[1739759884045,2.402,2677.3,2677.2,0.74694]
[1739759884342,4.50442412,2677.3,2677.2,0.74694]
[1739759884528,3.75751412,2677.3,2677.2,0.74694]
[1739759885335,4.50442412,2677.3,2677.2,0.74694]
[1739759887946,3.75751412,2677.3,2677.2,0.74694]
[1739759888347,2.402,2677.3,2677.2,0.74694]
[1739759888544,3.7619,2677.4,2677.1,0.00559754]
[1739759888745,2.402,2677.3,2677.2,0.74694]
[1739759889049,2.402,2677.3,2677.2,1.92814]
[1739759889340,2.402,2677.3,2677.2,2.50374]
[1739759890646,3.2078,2677.4,2677.3,0.74691]
[1739759896544,3.7905,2677.4,2677.3,0.74691]
[1739759899055,3.2078,2677.4,2677.3,0.74691]
[1739759901551,4.3421,2677.4,2677.3,0.74691]
[1739759903153,5.08898,2677.4,2677.3,0.74691]
[1739759903355,0.74693,2677.3,2677.2,0.74693]
[1739759903552,1.30413,2677.3,2677.1,0.00559754]
[1739759903853,0.5572,2677.3,2677.2,0.74694]
[1739759904560,3.2078,2677.4,2677.2,1.35551412]
[1739759904760,3.2078,2677.4,2677.3,1.28851]
[1739759906053,3.2078,2677.7,2677.6,0.74683]
[1739759906352,5.6088,2677.7,2677.6,0.74683]
[1739759907558,1.7031,2677.8,2677.7,0.7468]
[1739759907756,4.1041,2677.8,2677.7,0.7468]
[1739759907950,4.85087,2677.8,2677.7,0.7468]
[1739759908150,4.1041,2677.8,2677.7,0.7468]
[1739759908359,4.1041,2677.8,2677.5,0.5568]
[1739759908562,4.56331412,2677.7,2677.6,0.74682]
[1739759909259,5.31011412,2677.7,2677.6,0.74682]
[1739759909755,4.56331412,2677.7,2677.6,0.74682]
[1739759910558,3.2078,2677.7,2677.6,0.74682]
[1739759922570,5.6088,2677.7,2677.6,0.74682]
[1739759930067,3.2078,2677.7,2677.6,0.74682]
[1739759930368,5.6088,2677.7,2677.6,0.74682]
[1739759935266,3.2078,2677.7,2677.6,2.10233412]
[1739759935466,3.2078,2677.7,2677.6,0.74682]
[1739759936262,5.6088,2678.2,2678.1,0.74667]
[1739759936468,5.6088,2678.2,2678.1,2.10218412]
[1739759939473,2.401,2678.2,2678.1,2.10218412]
[1739759939878,5.6088,2678.2,2678.1,2.10218412]
[1739759943691,3.2078,2678.2,2678.1,2.10218412]
[1739759945978,0.5965,2678.3,2678.1,1.35551412]
[1739759946286,0.5965,2678.3,2678.2,1.32616]
[1739759946484,0.5965,2678.3,2678.2,1.86986]
[1739759947683,3.55309754,2678.5,2678.2,1.86986]
[1739759947684,0.59959754,2678.5,2678.4,0.7466]
[1739759947881,0.00559754,2678.5,2678.4,2.10211412]
[1739759956493,0.00559754,2678.5,2678.4,0.7466]
[1739759956886,0.57569754,2678.5,2678.4,0.7466]
[1739759957790,1.93121166,2678.5,2678.0,1.35551412]
[1739759957991,3.14661,2678.4,2678.2,0.74665]
[1739759958391,5.88327412,2678.3,2678.0,0.7467]
[1739759958583,0.5946,2678.2,2677.8,4.56331412]
[1739759958785,0.5653,2678.1,2678.0,0.74671]
[1739759960892,0.5653,2678.1,2677.8,3.2078]
[1739759961093,3.14672,2678.0,2677.8,3.95455]
[1739759961497,0.582,2677.9,2677.8,3.95457]
[1739759961904,0.582,2677.9,2677.8,0.74677]
[1739759966897,1.32874,2677.9,2677.8,0.74677]
[1739759967306,0.582,2677.9,2677.8,0.74677]
[1739759976308,1.32874,2677.9,2677.8,0.74677]
[1739759979807,0.74682,2677.7,2677.6,0.74681]
[1739759980111,3.2078,2677.7,2677.6,0.74681]
[1739759980615,3.8005,2677.7,2677.6,0.74681]
[1739759983713,0.5927,2677.7,2677.6,0.74681]
[1739759985617,1.3395,2677.7,2677.6,0.74681]
[1739759986412,0.5927,2677.7,2677.6,0.74681]
[1739759987413,1.3395,2677.7,2677.6,0.74681]
[1739759988611,0.74687,2677.5,2677.4,0.74687]
[1739759988915,7.7101863,2677.5,2677.4,0.74687]
[1739759989509,6.9633163,2677.5,2677.4,0.74687]
[1739759989913,8.3058763,2677.5,2677.4,0.74687]
[1739759994012,7.5590163,2677.5,2677.4,0.74687]
[1739759994419,6.2035,2677.5,2677.4,0.74687]
[1739759995114,6.95036,2677.5,2677.4,0.74687]
[1739759995313,6.2035,2677.5,2677.4,0.74687]
[1739759997621,6.95036,2677.5,2677.4,0.74687]
[1739759998921,6.2035,2677.5,2677.4,0.74687]
[1739760000423,6.95036,2677.5,2677.4,0.74687]
[1739760001126,6.2035,2677.5,2677.4,0.74687]
[1739760002010,2.9957,2677.5,2677.4,0.74687]
[1739760002523,2.6950263,2677.7,2677.6,0.74683]
[1739760002824,5.0950263,2677.7,2677.6,0.74683]
[1739760003923,0.74686,2677.5,2677.4,0.74688]
[1739760004226,0.74691,2677.4,2677.3,0.7469]
[1739760004417,1.90531,2677.4,2677.3,0.7469]
[1739760005926,1.1584,2677.4,2677.3,0.7469]
[1739760006728,1.90528,2677.4,2677.3,0.7469]
[1739760008224,1.1584,2677.4,2677.3,0.7469]
[1739760008532,1.90528,2677.4,2677.3,0.7469]
[1739760012128,1.1584,2677.4,2677.3,0.7469]
[1739760012329,1.90528,2677.4,2677.3,0.7469]
[1739760012531,1.1584,2677.4,2677.3,0.7469]
[1739760012731,1.90528,2677.4,2677.3,0.7469]
[1739760014234,1.1584,2677.4,2677.3,0.7469]
[1739760015631,0.74691,2677.3,2677.2,1.31112]
[1739760015836,3.14691,2677.3,2677.2,1.31112]
[1739760016727,2.4,2677.3,2677.2,1.31112]
[1739760019434,3.14691,2677.3,2677.2,1.31112]
[1739760019832,2.4,2677.3,2677.2,1.31112]
[1739760021035,3.14691,2677.3,2677.2,1.31112]
[1739760021837,2.4,2677.3,2677.2,1.31112]
[1739760024440,4.3662,2677.4,2677.3,0.74691]
[1739760024638,6.1914,2677.4,2677.3,0.74691]
[1739760024839,6.1914,2677.4,2677.3,1.33911]
[1739760029138,5.6078,2677.4,2677.3,1.33911]
[1739760030445,2.4,2677.4,2677.3,1.33911]
[1739760030638,5.6078,2677.4,2677.3,1.33911]
[1739760033445,6.35468,2677.4,2677.3,0.74691]
[1739760033642,6.1828,2677.4,2677.2,0.5642]
[1739760033841,0.74692,2677.3,2677.2,0.74691]
[1739760034040,1.34422,2677.3,2677.2,0.74691]
[1739760035138,0.5973,2677.3,2677.2,0.74691]
[1739760035944,1.34421,2677.3,2677.2,0.74691]
[1739760036252,0.5973,2677.3,2677.2,0.74691]
[1739760040147,3.2078,2677.4,2677.3,0.74691]
[1739760040354,5.6068,2677.4,2677.3,0.74691]
[1739760041849,6.1468,2677.4,2677.3,0.74691]
[1739760042344,6.89368,2677.4,2677.3,0.74691]
[1739760042550,7.44398,2677.4,2677.3,0.74691]
[1739760043948,6.6971,2677.4,2677.3,0.74691]
[1739760045551,3.4893,2677.4,2677.3,0.74691]
[1739760045949,6.6971,2677.4,2677.3,0.74691]
[1739760048451,6.1468,2677.4,2677.3,0.74691]
[1739760051859,3.7478,2677.4,2677.3,0.74691]
[1739760052061,3.2078,2677.7,2677.6,0.74683]
[1739760052252,5.6068,2677.7,2677.6,0.74683]
[1739760058466,8.2505163,2677.7,2677.6,0.74683]
[1739760059067,7.5037163,2677.7,2677.1,1.36111384]
[1739760059268,2.1023863,2677.5,2677.4,0.74687]
[1739760060167,2.1023863,2677.5,2677.1,1.12069754]
[1739760060168,2.1023863,2677.5,2677.1,0.00559754]
[1739760060365,4.3564,2677.4,2677.3,0.74689]
[1739760060764,45.1564,2677.4,2677.3,0.74689]
[1739760060965,4.3564,2677.4,2677.3,0.74689]
[1739760061770,1.1486,2677.4,2677.3,0.74689]
[1739760063562,4.3564,2677.4,2677.3,0.74689]
[1739760065373,4.3564,2677.4,2677.1,0.57089754]
[1739760065671,5.0420463,2677.3,2677.1,0.75255754]
[1739760065866,5.0420463,2677.3,2677.1,0.00559754]
[1739760066164,5.0420463,2677.3,2677.1,0.75254754]
[1739760066359,5.0420463,2677.3,2677.2,0.74694]
[1739760066967,5.0420463,2677.3,2677.1,0.00559754]
[1739760067164,5.0420463,2677.3,2677.2,0.74694]
[1739760069274,5.0420463,2677.3,2677.1,0.00559754]
[1739760069474,5.0420463,2677.3,2677.2,0.74694]
[1739760070177,4.2951163,2677.3,2677.1,0.00559754]
[1739760070569,4.2951163,2677.3,2677.2,0.74694]
[1739760070767,2.9396,2677.3,2677.2,0.74694]
[1739760070975,2.9396,2677.3,2677.2,1.29624]
[1739760071466,3.2078,2677.4,2677.3,0.74691]
[1739760071675,3.2078,2677.9,2677.4,0.74688]
[1739760071861,3.2078,2677.9,2677.8,0.74677]
[1739760072069,5.6068,2677.9,2677.8,0.74677]
[1739760075175,6.9623163,2677.9,2677.8,0.74677]
[1739760075376,5.6068,2677.9,2677.7,0.5644]
[1739760075575,6.9623163,2677.9,2677.7,1.31119]
[1739760076578,1.3555163,2677.8,2676.5,4.56605087]
[1739760076773,6.9623163,2677.9,2676.3,19.01572889]
[1739760076774,4.5633163,2677.2,2676.3,13.14666398]
[1739760076972,1.3555163,2676.5,2676.3,11.79114768]
[1739760077179,1.3555163,2676.5,2676.3,12.53833768]
[1739760077180,2.398,2676.4,2676.3,12.53833768]
[1739760078674,2.398,2676.4,2676.3,10.98143574]
[1739760078675,3.14516,2676.4,2676.3,10.98143574]
[1739760078878,4.29386,2676.4,2676.3,10.98143574]
[1739760080079,4.1304,2676.4,2676.3,10.98143574]
[1739760080279,4.87756,2676.4,2676.3,10.98143574]
[1739760080678,7.81843543,2676.4,2676.3,10.98143574]
[1739760080879,7.07127543,2676.4,2676.1,0.00559754]
[1739760081075,3.95502,2676.2,2676.1,0.00559754]
[1739760082876,3.2078,2676.2,2676.1,0.00559754]
[1739760083381,3.95502,2676.2,2676.1,0.00559754]
[1739760085388,3.2078,2676.2,2676.1,0.00559754]
[1739760085584,3.2078,2676.2,2676.1,0.75284754]
[1739760086377,3.2078,2676.2,2676.1,0.00559754]
[1739760087286,3.95502,2676.2,2676.1,0.00559754]
[1739760090486,3.2078,2676.2,2676.1,0.00559754]
[1739760090786,3.95502,2676.2,2676.1,0.00559754]
[1739760108995,6.35402,2676.2,2676.1,0.00559754]
[1739760110501,6.35402,2676.2,2676.1,0.00781328]
[1739760114201,3.2078,2676.2,2676.1,0.75506328]
[1739760114602,6.35402,2676.2,2676.1,1.30016328]
[1739760115291,5.6068,2676.2,2676.1,1.30016328]
[1739760118000,3.2078,2676.2,2676.1,1.30016328]
[1739760118203,5.6068,2676.2,2676.1,1.30016328]
[1739760120013,3.2078,2676.2,2676.1,1.30016328]
[1739760120306,2.399,2676.4,2676.1,6.55291328]
[1739760120607,2.399,2676.4,2676.3,0.74719]
[1739760123206,3.14616,2676.4,2676.3,0.74719]
[1739760123598,2.399,2676.4,2676.3,0.74719]
[1739760128108,2.399,2676.4,2676.1,0.55291328]
[1739760128314,1.31709,2676.3,2676.1,1.30014328]
[1739760128611,1.31709,2676.3,2676.1,0.75504328]
[1739760128612,3.2078,2676.2,2676.1,0.75504328]
[1739760130208,2.399,2676.4,2676.3,0.74719]
[1739760131306,3.2078,2676.5,2676.4,0.74716]
[1739760133210,3.95494,2676.5,2676.4,0.74716]
[1739760133406,3.2078,2676.5,2676.4,0.74716]
[1739760133817,5.6068,2676.5,2676.4,0.74716]
[1739760135012,0.00559754,2676.6,2676.5,0.74714]
[1739760138225,0.00559754,2676.6,2676.5,1.33284]
[1739760143922,0.00559754,2676.6,2676.5,7.33284]
[1739760144124,3.2078,2676.8,2676.7,0.74708]
[1739760145027,3.2078,2676.8,2676.7,1.34418]
[1739760145824,3.2078,2676.8,2676.7,0.74708]
[1739760149623,3.95487,2676.8,2676.6,0.74709]
[1739760149828,2.398,2676.7,2676.6,0.74711]
[1739760160147,3.2078,2676.8,2676.7,0.74708]
[1739760162945,3.21339754,2677.0,2676.9,0.74702]
[1739760169654,3.96040754,2677.0,2676.9,0.74702]
[1739760170546,3.96039754,2677.0,2676.9,0.74702]
[1739760170747,3.21339754,2677.0,2676.9,0.74702]
[1739760176450,3.96039754,2677.0,2676.7,1.6837]
[1739760176647,3.21339754,2677.0,2676.8,0.74704]
[1739760176846,1.33064,2676.9,2676.6,1.38112579]
[1739760177047,0.5836,2676.9,2676.8,0.74705]
[1739760185554,0.5836,2676.9,2676.8,2.12817579]
[1739760186053,0.5836,2676.9,2676.8,0.74705]
[1739760186659,0.5836,2676.9,2676.8,2.12817579]
[1739760187059,0.5836,2676.9,2676.8,0.74705]
[1739760187763,0.5836,2676.9,2676.8,2.12817579]
[1739760188262,0.5836,2676.9,2676.8,0.74705]
[1739760188663,0.5836,2676.9,2676.8,2.12817579]
[1739760189063,0.5836,2676.9,2676.8,0.74705]
[1739760189759,0.5836,2676.9,2676.8,2.12817579]
[1739760190260,0.5836,2676.9,2676.8,2.70317579]
[1739760190462,3.21339754,2677.0,2676.8,2.50852579]
[1739760190659,3.21339754,2677.0,2676.9,0.74702]
[1739760191157,3.21339754,2677.0,2676.9,2.12814579]
[1739760192664,0.00559754,2677.0,2676.9,2.12814579]
[1739760192964,3.21339754,2677.0,2676.9,2.12814579]
[1739760193865,3.21339754,2677.0,2676.9,0.74702]
[1739760194264,3.21339754,2677.0,2676.9,2.12814579]
[1739760195070,3.21339754,2677.0,2676.9,0.74702]
[1739760195562,3.21339754,2677.0,2676.9,2.12814579]
[1739760199273,0.00559754,2677.0,2676.9,2.12814579]
[1739760199466,3.21339754,2677.0,2676.9,2.12814579]
[1739760217791,3.21339754,2677.0,2676.9,0.74702]
[1739760218181,3.21339754,2677.0,2676.9,2.12814579]
[1739760218585,3.21339754,2677.0,2676.9,0.74702]
[1739760219288,3.21339754,2677.0,2676.9,2.12814579]
[1739760219693,3.21339754,2677.0,2676.9,0.74702]
[1739760220196,3.21339754,2677.0,2676.9,2.12814579]
[1739760220495,3.21339754,2677.0,2676.9,0.74702]
[1739760220993,3.21339754,2677.0,2676.9,2.12814579]
[1739760221494,3.21339754,2677.0,2676.9,0.74702]
[1739760222590,3.21339754,2677.0,2676.9,2.12814579]
[1739760223196,3.21339754,2677.0,2676.9,0.74702]
[1739760224087,3.21339754,2677.0,2676.9,2.12814579]
[1739760224796,3.21339754,2677.0,2676.9,0.74702]
[1739760225501,3.21339754,2677.0,2676.9,2.12814579]
[1739760225695,3.21339754,2677.0,2676.9,0.74702]
[1739760226093,3.21339754,2677.0,2676.9,2.12814579]
[1739760226602,3.21339754,2677.0,2676.9,0.74702]
[1739760227102,3.21339754,2677.0,2676.9,2.12814579]
[1739760227499,3.21339754,2677.0,2676.9,0.74702]
[1739760228399,3.21339754,2677.0,2676.9,2.12814579]
[1739760228791,3.21339754,2677.0,2676.9,0.74702]
[1739760229401,3.21339754,2677.0,2676.9,2.12814579]
[1739760230201,3.21339754,2677.0,2676.8,1.38112579]
[1739760230401,2.49563336,2676.9,2676.8,1.38112579]
[1739760230604,3.24265336,2676.9,2676.8,2.12817579]
[1739760230805,3.24265336,2676.9,2676.8,0.74705]
[1739760230997,2.49563336,2676.9,2676.8,0.74705]
[1739760231505,3.24268336,2676.9,2676.7,2.12818579]
[1739760231702,1.32005,2676.8,2676.7,2.12818579]
[1739760231903,0.573,2676.8,2676.7,2.12818579]
[1739760232103,0.573,2676.8,2676.7,0.74706]
[1739760232302,1.32005,2676.8,2676.7,0.74706]
[1739760232904,1.32005,2676.8,2676.7,2.12818579]
[1739760233807,1.32005,2676.8,2676.6,2.12820579]
[1739760234008,5.6038,2676.7,2676.6,2.12820579]
[1739760234208,7.70711336,2676.7,2676.6,2.12823579]
[1739760234698,7.70711336,2676.7,2676.6,0.74711]
[1739760235304,7.70711336,2676.7,2676.4,1.38112579]
[1739760235305,6.96003336,2676.7,2676.4,1.38112579]
[1739760235508,2.10337336,2676.5,2676.4,2.12828579]
[1739760236009,2.10337336,2676.5,2676.4,0.74716]
[1739760236400,0.74718,2676.4,2676.2,8.86285929]
[1739760236602,3.75223336,2676.3,2676.2,8.2289535]
[1739760237510,4.49942336,2676.3,2676.2,8.2289535]
[1739760238105,4.49942336,2676.3,2676.1,0.75282754]
[1739760238312,0.74722,2676.2,2676.1,0.00559754]
[1739760238509,3.75223336,2676.3,2676.1,0.00559754]
[1739760238704,3.75223336,2676.3,2676.1,0.75283754]
[1739760239106,3.75223336,2676.3,2676.2,0.74722]
[1739760242612,2.396,2676.3,2676.2,0.74722]
[1739760251920,5.6038,2676.3,2676.2,0.74722]
[1739760256022,6.35099,2676.3,2676.2,0.74722]
[1739760256223,5.6038,2676.3,2676.2,0.74722]
[1739760257322,6.35099,2676.3,2676.2,0.74722]
[1739760258522,5.6038,2676.3,2676.2,0.74722]
[1739760264726,6.96096133,2676.3,2676.2,0.74722]
[1739760265821,6.95882368,2676.3,2676.2,0.74722]
[1739760267035,7.70601368,2676.3,2676.2,0.74722]
[1739760267333,7.70601368,2676.3,2676.2,2.12834579]
[1739760267523,7.70601368,2676.3,2676.2,0.74722]
[1739760270225,6.95882368,2676.3,2676.2,0.74722]
[1739760271332,7.70601368,2676.3,2676.2,0.74722]
[1739760271537,6.95882368,2676.3,2676.2,0.74722]
[1739760272539,7.70601368,2676.3,2676.2,0.74722]
[1739760274534,7.70601368,2676.3,2676.2,2.12834579]
[1739760274830,6.95882368,2676.3,2676.2,2.12834579]
[1739760275030,7.70601368,2676.3,2676.2,0.74722]
[1739760275841,7.70603368,2676.3,2676.2,0.74722]
[1739760277637,6.95882368,2676.3,2676.2,0.74722]
[1739760279145,7.70601368,2676.3,2676.2,0.74722]
[1739760281759,6.95882368,2676.3,2676.1,0.00559754]
[1739760282055,0.74722,2676.2,2676.1,0.75281754]
[1739760282757,7.70603368,2676.3,2676.2,0.74722]
[1739760284259,6.95882368,2676.3,2676.2,0.74722]
[1739760284461,7.70601368,2676.3,2676.2,0.74722]
[1739760286957,4.49821368,2676.3,2676.2,0.74722]
[1739760287158,7.70601368,2676.3,2676.2,0.74722]
[1739760287665,7.70601368,2676.3,2676.1,0.75282754]
[1739760287865,7.70601368,2676.3,2676.2,0.74722]
[1739760288065,7.70601368,2676.3,2676.1,0.75282754]
[1739760288066,0.74722,2676.2,2676.1,0.75282754]
[1739760288366,7.70603368,2676.3,2676.2,0.74722]
[1739760289464,0.74722,2676.2,2676.1,0.00559754]
[1739760289967,6.95882368,2676.3,2675.5,1.1423]
[1739760290169,1.35716133,2675.6,2675.5,1.88971]
[1739760290467,3.75316133,2675.6,2675.1,0.5776]
[1739760290666,1.35716133,2675.3,2675.2,1.8896]
[1739760291558,4.56496133,2675.3,2675.0,11.6786452]
[1739760291765,1.35716133,2675.1,2675.0,12.4261852]
[1739760292460,1.90606133,2675.1,2675.0,12.4261852]
[1739760293064,1.90606133,2675.1,2675.0,0.00559754]
[1739760297668,2.65359133,2675.1,2675.0,0.00559754]
[1739760297861,1.90606133,2675.1,2675.0,0.00559754]
[1739760298362,1.90606133,2675.1,2675.0,0.75314754]
[1739760299164,4.30206133,2675.1,2675.0,0.75314754]
[1739760299563,3.75316133,2675.1,2675.0,0.75314754]
[1739760300869,5.61569133,2675.1,2675.0,0.00559754]
[1739760301364,4.86816133,2675.1,2675.0,0.75314754]
[1739760301569,3.75316133,2675.1,2675.0,0.75314754]
[1739760303666,3.75316133,2675.1,2675.0,0.00559754]
[1739760303868,4.50069133,2675.1,2675.0,0.00559754]
[1739760304165,5.85785266,2675.1,2675.0,0.00559754]
[1739760304559,4.50069133,2675.1,2675.0,0.00559754]
[1739760310673,3.75316133,2675.1,2675.0,0.00559754]
[1739760310975,4.50069133,2675.1,2675.0,0.00559754]
[1739760312673,3.75316133,2675.1,2675.0,0.75314754]
[1739760313371,1.35716133,2675.1,2675.0,0.75314754]
[1739760313772,4.56496133,2675.3,2675.0,0.00559754]
[1739760313970,2.397,2675.2,2675.1,1.1295]
[1739760314274,3.75416133,2675.2,2675.1,2.43231]
[1739760317679,2.397,2675.2,2675.1,2.43231]
[1739760317977,1.35716133,2675.4,2675.3,0.74747]
[1739760318170,3.75316133,2675.4,2675.3,0.74747]
[1739760318880,2.396,2675.4,2675.3,0.74747]
[1739760322080,3.14345,2675.4,2675.2,0.74748]
[1739760322375,4.56496133,2675.3,2675.2,0.74748]
[1739760323682,5.6038,2675.3,2675.2,0.74748]
[1739760324783,3.2078,2675.3,2675.2,0.74748]
[1739760324975,5.6038,2675.3,2675.2,0.74748]
[1739760328279,6.96096133,2675.3,2675.2,0.74748]
[1739760328480,6.96096133,2675.3,2675.1,1.6848]
[1739760328676,0.5841,2675.2,2675.1,2.4323]
[1739760331784,3.7919,2675.2,2675.1,2.4323]
[1739760338989,0.5841,2675.2,2675.1,2.4323]
[1739760350701,0.5553,2675.4,2675.1,3.04196133]
[1739760350895,3.21339754,2675.5,2675.4,0.74744]